[Event "Biel Master Tournament 2019"]
[Site "Biel"]
[Date "2019.07.23"]
[Round "2.19"]
[White "Aryan, Chopra"]
[Black "Wong, Jianwen"]
[Result "1/2-1/2"]
[ECO "B33"]
[WhiteElo "2553"]
[BlackElo "2301"]
[Annotator "ChessBase"]
[PlyCount "123"]
[EventDate "2019.07.20"]
[EventType "swiss"]
[EventCountry "SUI"]
[SourceTitle "playchess.com"]
[Source "ChessBase"]
[SourceQuality "1"]
[TimeControl "40/5400+30:1800+30"]

1. e4 {[%emt 0:00:00]} c5 {[%emt 0:00:00]} 2. Nf3 {[%emt 0:00:00]} Nc6 {[%emt 0:00:00]} 3. d4 {[%emt 0:00:00]} cxd4 {[%emt 0:00:00]} 4. Nxd4 {[%emt 0:00:00]} Nf6 {[%emt 0:00:00]} 5. Nc3 {[%emt 0:00:00]} e5 {[%emt 0:00:00]} 6. Ndb5 {[%emt 0:00:00]} d6 {[%emt 0:00:00]} 7. Bg5 {[%emt 0:00:04]} a6 {[%emt 0:00:00]} 8. Na3 {[%emt 0:00:04]} b5 {[%emt 0:00:01]} 9. Bxf6 {[%emt 0:00:15]} gxf6 {[%emt 0:00:05]} 10. Nd5 {[%emt 0:00:04]} Bg7 {[%emt 0:00:09]} 11. Bd3 {[%emt 0:00:09]} Ne7 {[%emt 0:00:07]} 12. Nxe7 {[%emt 0:00:11]} Qxe7 {[%emt 0:00:05]} 13. c4 {[%emt 0:00:15]} f5 {[%emt 0:00:28]} 14. O-O {[%emt 0:00:12]} O-O {[%emt 0:00:06]} 15. Qf3 {[%emt 0:00:11]} Qb7 {[%emt 0:00:19]} 16. exf5 {[%emt 0:00:40]} Qxf3 {[%emt 0:00:15]} 17. gxf3 {[%emt 0:00:04]} e4 {[%emt 0:00:06]} 18. Bxe4 {[%emt 0:00:12]} d5 {[%emt 0:00:05]} 19. Bxd5 {[%emt 0:00:16]} Bxf5 {[%emt 0:02:26]} 20. Bxa8 {[%emt 0:00:48]} Rxa8 {[%emt 0:00:24]} 21. Rae1 {[%emt 0:01:29]} Bd3 {[%emt 0:04:31]} 22. b3 {[%emt 0:01:21]} Bf8 {[%emt 0:05:56]} 23. c5 {[%emt 0:04:03]} Rc8 {[%emt 0:06:56]} 24. b4 {[%emt 0:04:11]} a5 {[%emt 0:01:56]} 25. Rc1 {[%emt 0:04:13]} axb4 {[%emt 0:07:16]} 26. Rfd1 {[%emt 0:00:43]} Bh6 {[%emt 0:06:38]} 27. Rxd3 {[%emt 0:03:43]} Bxc1 {[%emt 0:00:14]} 28. Nc2 {[%emt 0:01:35]} Rxc5 {[%emt 0:02:29]} 29. Nxb4 {[%emt 0:00:05]} Rc4 {[%emt 0:09:09]} 30. Rb3 {[%emt 0:07:56]} Ba3 {[%emt 0:07:37]} 31. Nd5 {[%emt 0:22:09]} b4 {[%emt 0:06:00]} 32. Re3 {[%emt 0:01:20]} Rc2 {[%emt 0:03:19]} 33. Re8+ {[%emt 0:03:25]} Kg7 {[%emt 0:00:13]} 34. Ra8 {[%emt 0:00:29]} Rd2 {[%emt 0:09:32]} 35. Ra5 {[%emt 0:00:42]} Kf8 {[%emt 0:08:21]} 36. Ra8+ {[%emt 0:15:24]} Kg7 {[%emt 0:00:20]} 37. Ra5 {[%emt 0:00:07]} Kf8 {[%emt 0:00:02]} 38. Rb5 {[%emt 0:11:29]} Kg7 {[%emt 0:00:52]} 39. f4 {[%emt 0:02:36]} Rxa2 {[%emt 0:05:27]} 40. Nxb4 {[%emt 0:00:33]} Bxb4 {[%emt 0:00:13]} 41. Rxb4 {[%emt 0:30:04]} Kg6 {[%emt 0:30:27]} 42. Kg2 {[%emt 0:00:26]} Ra3 {[%emt 0:00:11]} 43. f3 {[%emt 0:00:53]} Ra2+ {[%emt 0:01:10]} 44. Kg3 {[%emt 0:00:05]} Ra1 {[%emt 0:01:39]} 45. Rb6+ {[%emt 0:01:59]} f6 {[%emt 0:05:11]} 46. Rb7 {[%emt 0:00:10]} h6 {[%emt 0:03:51]} 47. Rb5 {[%emt 0:01:28]} f5 {[%emt 0:04:50]} 48. Rb6+ {[%emt 0:04:10]} Kg7 {[%emt 0:00:11]} 49. h4 {[%emt 0:01:44]} h5 {[%emt 0:00:18]} 50. Kf2 {[%emt 0:00:18]} Ra3 {[%emt 0:01:57]} 51. Rb1 {[%emt 0:01:03]} Kf6 {[%emt 0:01:40]} 52. Rb6+ {[%emt 0:00:11]} Kg7 {[%emt 0:00:11]} 53. Ke2 {[%emt 0:00:56]} Rc3 {[%emt 0:01:54]} 54. Rd6 {[%emt 0:00:58]} Ra3 {[%emt 0:00:00]} 55. Rd3 {[%emt 0:00:00]} Ra1 {[%emt 0:00:00]} 56. Rd7+ {[%emt 0:00:00]} Kg6 {[%emt 0:00:00]} 57. Rd6+ {[%emt 0:00:00]} Kg7 {[%emt 0:00:00]} 58. Ke3 {[%emt 0:00:00]} Ra4 {[%emt 0:00:00]} 59. Rd4 {[%emt 0:00:00]} Ra3+ {[%emt 0:00:00]} 60. Rd3 {[%emt 0:00:00]} Ra4 {[%emt 0:00:00]} 61. Rd4 {[%emt 0:00:00]} Ra3+ {[%emt 0:00:00]} 62. Rd3 {[%emt 0:00:00]} 1/2-1/2

[Event "Biel Master Tournament 2019"]
[Site "Biel"]
[Date "2019.07.23"]
[Round "2.20"]
[White "Omar, Noaman"]
[Black "Puranik, Abhimanyu"]
[Result "0-1"]
[ECO "D85"]
[WhiteElo "2369"]
[BlackElo "2550"]
[Annotator "ChessBase"]
[PlyCount "146"]
[EventDate "2019.07.20"]
[EventType "swiss"]
[EventCountry "SUI"]
[SourceTitle "playchess.com"]
[Source "ChessBase"]
[SourceQuality "1"]
[TimeControl "40/5400+30:1800+30"]

1. d4 {[%emt 0:05:43]} Nf6 {[%emt 0:00:00]} 2. c4 {[%emt 0:00:56]} g6 {[%emt 0:00:00]} 3. Nc3 {[%emt 0:00:24]} d5 {[%emt 0:00:03]} 4. cxd5 {[%emt 0:04:46]} Nxd5 {[%emt 0:00:07]} 5. e4 {[%emt 0:00:32]} Nxc3 {[%emt 0:00:11]} 6. bxc3 {[%emt 0:00:03]} Bg7 {[%emt 0:00:13]} 7. Qa4+ {[%emt 0:03:46]} Nd7 {[%emt 0:00:29]} 8. Nf3 {[%emt 0:00:31]} c5 {[%emt 0:00:43]} 9. Be2 {[%emt 0:01:23]} O-O {[%emt 0:00:24]} 10. O-O {[%emt 0:00:22]} Nf6 {[%emt 0:00:18]} 11. d5 {[%emt 0:01:53]} e6 {[%emt 0:04:09]} 12. Bg5 {[%emt 0:14:43]} Qe8 {[%emt 0:21:04]} 13. Qxe8 {[%emt 0:20:54]} Rxe8 {[%emt 0:00:05]} 14. Bxf6 {[%emt 0:01:58]} Bxf6 {[%emt 0:00:06]} 15. e5 {[%emt 0:01:55]} Bg7 {[%emt 0:11:23]} 16. d6 {[%emt 0:20:02]} Rd8 {[%emt 0:02:51]} 17. a4 {[%emt 0:02:50]} b6 {[%emt 0:03:13]} 18. a5 {[%emt 0:00:25]} Bb7 {[%emt 0:01:07]} 19. axb6 {[%emt 0:00:18]} axb6 {[%emt 0:00:05]} 20. Rab1 {[%emt 0:00:24]} Ra3 {[%emt 0:03:09]} 21. Rxb6 {[%emt 0:00:52]} Bxf3 {[%emt 0:00:24]} 22. Bxf3 {[%emt 0:00:54]} Rxc3 {[%emt 0:07:39]} 23. Rd1 {[%emt 0:09:38]} Bxe5 {[%emt 0:00:26]} 24. h4 {[%emt 0:00:59]} h5 {[%emt 0:01:23]} 25. Be2 {[%emt 0:02:01]} Kf8 {[%emt 0:02:34]} 26. Kf1 {[%emt 0:01:01]} Rc2 {[%emt 0:01:19]} 27. Rc6 {[%emt 0:00:39]} Rc3 {[%emt 0:02:31]} 28. g3 {[%emt 0:01:33]} Kg7 {[%emt 0:01:29]} 29. Rd2 {[%emt 0:01:21]} Kf6 {[%emt 0:00:43]} 30. Kg2 {[%emt 0:01:09]} Bd4 {[%emt 0:04:00]} 31. Ra2 {[%emt 0:00:19]} Ke5 {[%emt 0:11:24]} 32. Bf3 {[%emt 0:00:41]} Rb3 {[%emt 0:00:46]} 33. Re2+ {[%emt 0:00:41]} Kf6 {[%emt 0:00:04]} 34. Ra2 {[%emt 0:00:30]} Rbb8 {[%emt 0:03:19]} 35. Be2 {[%emt 0:00:41]} Rd7 {[%emt 0:00:38]} 36. Ra3 {[%emt 0:00:40]} Rb2 {[%emt 0:06:52]} 37. Rf3+ {[%emt 0:00:15]} Ke5 {[%emt 0:00:34]} 38. Kf1 {[%emt 0:00:45]} Ra7 {[%emt 0:03:21]} 39. Bc4 {[%emt 0:00:31]} Rc2 {[%emt 0:03:18]} 40. Bb3 {[%emt 0:00:28]} Rb2 {[%emt 0:03:16]} 41. Bc4 {[%emt 0:08:01]} Rb4 {[%emt 0:01:45]} 42. Bb3 {[%emt 0:03:48]} Rbb7 {[%emt 0:00:56]} 43. Rd3 {[%emt 0:01:12]} Rd7 {[%emt 0:01:00]} 44. Rd2 {[%emt 0:00:45]} Ra8 {[%emt 0:02:03]} 45. Ra2 {[%emt 0:10:10]} Rad8 {[%emt 0:04:55]} 46. Raa6 {[%emt 0:00:20]} Rb7 {[%emt 0:04:57]} 47. Bc4 {[%emt 0:01:40]} Rb1+ {[%emt 0:01:24]} 48. Kg2 {[%emt 0:00:03]} Rb2 {[%emt 0:00:08]} 49. Ra2 {[%emt 0:00:09]} Rb4 {[%emt 0:00:23]} 50. Re2+ {[%emt 0:02:23]} Kf6 {[%emt 0:00:06]} 51. Rc2 {[%emt 0:00:14]} Ra4 {[%emt 0:00:55]} 52. Ba6 {[%emt 0:02:44]} g5 {[%emt 0:02:50]} 53. hxg5+ {[%emt 0:00:18]} Kxg5 {[%emt 0:00:03]} 54. Bb5 {[%emt 0:01:32]} Rb4 {[%emt 0:00:50]} 55. R6xc5+ {[%emt 0:00:35]} Bxc5 {[%emt 0:00:13]} 56. Rxc5+ {[%emt 0:00:02]} Kf6 {[%emt 0:00:12]} 57. d7 {[%emt 0:00:17]} h4 {[%emt 0:00:16]} 58. gxh4 {[%emt 0:01:25]} Rxh4 {[%emt 0:00:08]} 59. Rc7 {[%emt 0:02:09]} Ke7 {[%emt 0:01:17]} 60. Ra7 {[%emt 0:00:41]} Rb4 {[%emt 0:01:15]} 61. Bc6 {[%emt 0:01:16]} Rb2 {[%emt 0:01:33]} 62. Kf3 {[%emt 0:00:17]} Kd6 {[%emt 0:00:34]} 63. Ba4 {[%emt 0:01:26]} Ra2 {[%emt 0:00:06]} 64. Kg3 {[%emt 0:00:17]} Ra3+ {[%emt 0:00:40]} 65. f3 {[%emt 0:00:08]} e5 {[%emt 0:00:32]} 66. Ra6+ {[%emt 0:00:15]} Kc7 {[%emt 0:00:55]} 67. Rc6+ {[%emt 0:00:19]} Kxd7 {[%emt 0:00:10]} 68. Rc4+ {[%emt 0:00:41]} Ke7 {[%emt 0:00:14]} 69. Bc2 {[%emt 0:00:26]} Rd4 {[%emt 0:01:00]} 70. Rc5 {[%emt 0:00:17]} Kd6 {[%emt 0:00:19]} 71. Rc8 {[%emt 0:00:12]} e4 {[%emt 0:01:54]} 72. Rd8+ {[%emt 0:00:03]} Kc5 {[%emt 0:00:07]} 73. Rc8+ {[%emt 0:00:42]} Kb6 {[%emt 0:00:07]} 0-1

[Event "Biel Master Tournament 2019"]
[Site "Biel"]
[Date "2019.07.24"]
[Round "3.9"]
[White "Stany, G.A."]
[Black "Gopal G.N."]
[Result "1/2-1/2"]
[ECO "B90"]
[WhiteElo "2525"]
[BlackElo "2594"]
[Annotator "ChessBase"]
[PlyCount "80"]
[EventDate "2019.07.20"]
[EventType "swiss"]
[EventCountry "SUI"]
[SourceTitle "playchess.com"]
[Source "ChessBase"]
[SourceQuality "1"]
[TimeControl "40/5400+30:1800+30"]

1. e4 {[%emt 0:00:00]} c5 {[%emt 0:00:00]} 2. Nf3 {[%emt 0:00:00]} d6 {[%emt 0:00:00]} 3. d4 {[%emt 0:00:00]} cxd4 {[%emt 0:00:00]} 4. Nxd4 {[%emt 0:00:00]} Nf6 {[%emt 0:00:00]} 5. Nc3 {[%emt 0:00:00]} a6 {[%emt 0:00:00]} 6. Bd3 {[%emt 0:00:00]} e5 {[%emt 0:00:00]} 7. Nde2 {[%emt 0:00:00]} Be7 {[%emt 0:00:43]} 8. O-O {[%emt 0:00:04]} Be6 {[%emt 0:03:05]} 9. f4 {[%emt 0:00:37]} exf4 {[%emt 0:02:25]} 10. Nxf4 {[%emt 0:00:24]} Nc6 {[%emt 0:01:42]} 11. Nxe6 {[%emt 0:13:19]} fxe6 {[%emt 0:00:45]} 12. Bc4 {[%emt 0:01:57]} Qd7 {[%emt 0:14:10]} 13. Bf4 {[%emt 0:03:07]} b5 {[%emt 0:06:51]} 14. Bb3 {[%emt 0:01:18]} Na5 {[%emt 0:01:29]} 15. Bg5 {[%emt 0:12:35]} Nxb3 {[%emt 0:08:17]} 16. axb3 {[%emt 0:00:20]} b4 {[%emt 0:02:55]} 17. Na4 {[%emt 0:15:01]} O-O {[%emt 0:05:06]} 18. Nb6 {[%emt 0:05:25]} Qb5 {[%emt 0:07:03]} 19. Be3 {[%emt 0:12:18]} Rab8 {[%emt 0:11:01]} 20. Nc4 {[%emt 0:00:24]} d5 {[%emt 0:06:52]} 21. Ra5 {[%emt 0:11:35]} Qb7 {[%emt 0:07:12]} 22. exd5 {[%emt 0:00:36]} exd5 {[%emt 0:00:16]} 23. Nd2 {[%emt 0:08:09]} Bd8 {[%emt 0:08:04]} 24. Ra1 {[%emt 0:00:11]} Bb6 {[%emt 0:00:15]} 25. Bxb6 {[%emt 0:00:14]} Qxb6+ {[%emt 0:00:01]} 26. Kh1 {[%emt 0:00:06]} Qd4 {[%emt 0:04:34]} 27. Nf3 {[%emt 0:02:00]} Qxb2 {[%emt 0:00:08]} 28. Rxa6 {[%emt 0:01:38]} Rbc8 {[%emt 0:02:15]} 29. Ne1 {[%emt 0:00:32]} Qc3 {[%emt 0:03:08]} 30. Rf3 {[%emt 0:03:00]} Qe5 {[%emt 0:02:07]} 31. Nd3 {[%emt 0:00:17]} Qc3 {[%emt 0:00:51]} 32. h3 {[%emt 0:05:30]} h6 {[%emt 0:01:29]} 33. Ne1 {[%emt 0:00:42]} Qc5 {[%emt 0:02:27]} 34. Nd3 {[%emt 0:01:10]} Qxc2 {[%emt 0:00:33]} 35. Qxc2 {[%emt 0:00:04]} Rxc2 {[%emt 0:00:01]} 36. Nxb4 {[%emt 0:00:06]} Rb2 {[%emt 0:00:38]} 37. Rd6 {[%emt 0:01:47]} Rb8 {[%emt 0:00:49]} 38. Nxd5 {[%emt 0:00:10]} Nxd5 {[%emt 0:00:04]} 39. Rxd5 {[%emt 0:00:04]} R2xb3 {[%emt 0:00:06]} 40. Rxb3 {[%emt 0:00:03]} Rxb3 {[%emt 0:00:03]} 1/2-1/2

[Event "Biel Master Tournament 2019"]
[Site "Biel"]
[Date "2019.07.24"]
[Round "3.10"]
[White "Keymer, Vincent"]
[Black "Petrosyan, Manuel"]
[Result "1/2-1/2"]
[ECO "D38"]
[WhiteElo "2513"]
[BlackElo "2592"]
[Annotator "ChessBase"]
[PlyCount "56"]
[EventDate "2019.07.20"]
[EventType "swiss"]
[EventCountry "SUI"]
[SourceTitle "playchess.com"]
[Source "ChessBase"]
[SourceQuality "1"]
[TimeControl "40/5400+30:1800+30"]

1. d4 {[%emt 0:00:00]} Nf6 {[%emt 0:00:30]} 2. c4 {[%emt 0:00:00]} e6 {[%emt 0:00:08]} 3. Nf3 {[%emt 0:00:00]} d5 {[%emt 0:00:16]} 4. Nc3 {[%emt 0:00:00]} Bb4 {[%emt 0:00:21]} 5. cxd5 {[%emt 0:00:00]} exd5 {[%emt 0:00:06]} 6. Bg5 {[%emt 0:00:04]} h6 {[%emt 0:00:57]} 7. Bh4 {[%emt 0:00:04]} Bf5 {[%emt 0:01:14]} 8. e3 {[%emt 0:04:07]} Nbd7 {[%emt 0:03:46]} 9. Be2 {[%emt 0:13:46]} c6 {[%emt 0:08:39]} 10. O-O {[%emt 0:11:11]} Bd6 {[%emt 0:05:15]} 11. Bg3 {[%emt 0:06:18]} Bxg3 {[%emt 0:02:43]} 12. hxg3 {[%emt 0:00:09]} a5 {[%emt 0:03:35]} 13. Nh4 {[%emt 0:14:33]} Bh7 {[%emt 0:05:00]} 14. g4 {[%emt 0:09:19]} O-O {[%emt 0:08:58]} 15. g3 {[%emt 0:02:02]} Ne8 {[%emt 0:01:39]} 16. Ng2 {[%emt 0:04:51]} Nd6 {[%emt 0:06:21]} 17. Nf4 {[%emt 0:01:14]} Qe7 {[%emt 0:06:37]} 18. Kg2 {[%emt 0:03:24]} f5 {[%emt 0:02:16]} 19. gxf5 {[%emt 0:03:02]} Bxf5 {[%emt 0:03:44]} 20. Bd3 {[%emt 0:00:44]} Qf7 {[%emt 0:06:32]} 21. Bxf5 {[%emt 0:03:10]} Qxf5 {[%emt 0:03:00]} 22. Qd3 {[%emt 0:03:08]} Qf6 {[%emt 0:10:58]} 23. Qg6 {[%emt 0:05:52]} Qxg6 {[%emt 0:01:09]} 24. Nxg6 {[%emt 0:00:04]} Rfe8 {[%emt 0:00:14]} 25. a4 {[%emt 0:01:46]} Kf7 {[%emt 0:03:11]} 26. Nf4 {[%emt 0:01:18]} g5 {[%emt 0:01:05]} 27. Nd3 {[%emt 0:00:22]} h5 {[%emt 0:01:00]} 28. Rae1 {[%emt 0:03:57]} Kg7 {[%emt 0:03:10]} 1/2-1/2

[Event "Biel Master Tournament 2019"]
[Site "Biel"]
[Date "2019.07.24"]
[Round "3.12"]
[White "Iturrizaga Bonelli, Eduardo"]
[Black "Sadhwani, Raunak"]
[Result "1/2-1/2"]
[ECO "A29"]
[WhiteElo "2625"]
[BlackElo "2477"]
[Annotator "RC"]
[PlyCount "123"]
[EventDate "2019.07.20"]
[EventType "swiss"]
[EventCountry "SUI"]
[SourceTitle "playchess.com"]
[Source "ChessBase"]
[SourceQuality "1"]
[TimeControl "40/5400+30:1800+30"]

1. c4 {[%emt 0:01:45]} e5 {[%emt 0:00:00]} 2. Nc3 {[%emt 0:00:42]} Nf6 {[%emt 0:00:00]} 3. Nf3 {[%emt 0:00:36]} Nc6 {[%emt 0:00:00]} 4. g3 {[%emt 0:00:42]} d5 {[%emt 0:00:05]} 5. cxd5 {[%emt 0:00:05]} Nxd5 {[%emt 0:00:06]} 6. Bg2 {[%emt 0:00:06]} Bc5 {[%emt 0:00:10]} 7. O-O {[%emt 0:00:29]} O-O {[%emt 0:01:46]} 8. Nxd5 {[%emt 0:04:53]} Qxd5 {[%emt 0:00:10]} 9. d3 {[%emt 0:00:03]} Bb6 {[%emt 0:01:49]} 10. Bd2 {[%emt 0:00:09]} Bg4 {[%emt 0:05:23]} 11. Bc3 {[%emt 0:05:49]} Qe6 {[%emt 0:05:46]} 12. b4 {[%emt 0:12:03]} Nd4 {[%emt 0:09:52]} 13. Bxd4 {[%emt 0:14:58]} Bxd4 {[%emt 0:08:35]} 14. Nxd4 {[%emt 0:03:51]} exd4 {[%emt 0:00:09]} 15. Re1 {[%emt 0:00:04]} c6 {[%emt 0:01:19]} 16. a4 {[%emt 0:00:09]} Bh3 {[%emt 0:10:38]} 17. Bf3 {[%emt 0:02:19]} Bg4 {[%emt 0:00:26]} 18. Bxg4 {[%emt 0:00:39]} Qxg4 {[%emt 0:00:06]} 19. e4 {[%emt 0:00:03]} Qxd1 {[%emt 0:08:35]} 20. Rexd1 {[%emt 0:00:04]} f5 {[%emt 0:09:53]} 21. Re1 {[%emt 0:17:42]} f4 {[%emt 0:07:48]} 22. a5 {[%emt 0:10:19]} a6 {[%emt 0:10:22]} 23. Rac1 {[%emt 0:00:22]} fxg3 {[%emt 0:01:23]} 24. hxg3 {[%emt 0:00:08]} Rf3 {[%emt 0:00:15]} 25. Red1 {[%emt 0:00:05]} g5 {[%emt 0:00:16]} 26. Rc5 {[%emt 0:01:20]} h6 {[%emt 0:00:07]} 27. Kg2 {[%emt 0:00:25]} Raf8 {[%emt 0:02:13]} 28. Rd2 {[%emt 0:00:04]} g4 {[%emt 0:03:30]} 29. Rh5 {[%emt 0:00:18]} R3f6 {[%emt 0:00:32]} 30. Rh4 {[%emt 0:09:19]} Rg6 {[%emt 0:00:02]} 31. Rc2 {[%emt 0:00:05]} Kh7 {[%emt 0:04:05]} 32. Rc4 {[%emt 0:00:40]} Rd8 {[%emt 0:02:22]} 33. Rc5 {[%emt 0:02:32]} Rf8 {[%emt 0:00:23]} 34. Kf1 {[%emt 0:07:12]} Rgf6 {[%emt 0:03:02]} 35. Rh2 {[%emt 0:00:05]} Kg6 {[%emt 0:01:17]} 36. Ke1 {[%emt 0:00:59]} R8f7 {[%emt 0:01:33]} 37. Rch5 {[%emt 0:02:27]} Kg7 {[%emt 0:00:04]} 38. Re5 {[%emt 0:00:27]} Kh7 {[%emt 0:03:16]} 39. Re8 {[%emt 0:01:36]} Rc7 {[%emt 0:01:11]} 40. Re5 {[%emt 0:03:34]} Rcf7 {[%emt 0:00:05]} 41. Ke2 {[%emt 0:02:32]} Rc7 {[%emt 0:06:21]} 42. Rg5 {[%emt 0:01:32]} b6 {[%emt 0:08:53]} 43. axb6 {[%emt 0:09:35]} Rb7 {[%emt 0:00:01]} 44. Rxg4 {[%emt 0:00:26]} Rxb6 {[%emt 0:00:15]} 45. Rh1 {[%emt 0:08:35]} c5 {[%emt 0:03:06]} 46. e5 {[%emt 0:00:04]} Rfe6 {[%emt 0:00:34]} 47. f4 {[%emt 0:03:35]} cxb4 {[%emt 0:00:09]} 48. Kf3 {[%emt 0:00:06]} b3 {[%emt 0:00:46]} 49. Ke4 {[%emt 0:00:08]} b2 {[%emt 0:01:28]} 50. f5 {[%emt 0:00:04]} Re8 {[%emt 0:04:48]} 51. Rb1 {[%emt 0:00:13]} a5 {[%emt 0:05:21]} 52. Rg6 {[%emt 0:01:30]} Rxg6 {[%emt 0:01:27]} 53. fxg6+ {[%emt 0:00:05]} Kxg6 {[%emt 0:00:02]} 54. Rxb2 {[%emt 0:00:04]} Ra8 {[%emt 0:00:03]} 55. Kxd4 {[%emt 0:04:57]} a4 {[%emt 0:03:19]} 56. Ke4 {[%emt 0:00:05]} a3 {[%emt 0:00:03]} 57. Ra2 {[%emt 0:00:02]} Ra4+ {[%emt 0:00:58]} 58. d4 {[%emt 0:00:04]} h5 {[%emt 0:00:04]} 59. Kd5 {[%emt 0:00:54]} Kf5 {[%emt 0:01:16]} 60. Rf2+ {[%emt 0:00:12]} Kg5 {[%emt 0:00:10]} 61. Ra2 {[%emt 0:01:28]} Kf5 {[%emt 0:00:04]} 62. Rf2+ {[%emt 0:00:52] Kxe5+ Ke4+} 1/2-1/2

[Event "Biel Master Tournament 2019"]
[Site "Biel"]
[Date "2019.07.24"]
[Round "3.13"]
[White "Santos Latasa, Jaime"]
[Black "Rahul Srivatshav, Peddi"]
[Result "1-0"]
[ECO "B47"]
[WhiteElo "2594"]
[BlackElo "1978"]
[Annotator "RC"]
[PlyCount "97"]
[EventDate "2019.07.20"]
[EventType "swiss"]
[EventCountry "SUI"]
[SourceTitle "playchess.com"]
[Source "ChessBase"]
[SourceQuality "1"]
[TimeControl "40/5400+30:1800+30"]

1. e4 {[%emt 0:01:53]} c5 {[%emt 0:01:39]} 2. Nf3 {[%emt 0:00:06]} e6 {[%emt 0:00:41]} 3. d4 {[%emt 0:00:08]} cxd4 {[%emt 0:00:07]} 4. Nxd4 {[%emt 0:00:06]} Nc6 {[%emt 0:00:04]} 5. Nc3 {[%emt 0:00:08]} Qc7 {[%emt 0:00:02]} 6. g3 {[%emt 0:00:07]} a6 {[%emt 0:00:19]} 7. Bg2 {[%emt 0:00:07]} Nf6 {[%emt 0:02:16]} 8. O-O {[%emt 0:00:06]} Nxd4 {[%emt 0:00:05]} 9. Qxd4 {[%emt 0:00:06]} Bc5 {[%emt 0:00:03]} 10. Bf4 {[%emt 0:00:10]} d6 {[%emt 0:00:04]} 11. Qd2 {[%emt 0:00:08]} h6 {[%emt 0:01:28]} 12. Rad1 {[%emt 0:00:05]} e5 {[%emt 0:00:07]} 13. Be3 {[%emt 0:00:05]} Bb4 {[%emt 0:00:12]} 14. Nb5 {[%emt 0:00:18]} axb5 {[%emt 0:00:05]} 15. Qxb4 {[%emt 0:00:06]} Rxa2 {[%emt 0:00:18]} 16. Rxd6 {[%emt 0:00:58]} O-O {[%emt 0:04:27]} 17. Rd2 {[%emt 0:02:59]} Be6 {[%emt 0:00:37]} 18. Rfd1 {[%emt 0:01:37]} Qc4 {[%emt 0:00:08]} 19. Qxc4 {[%emt 0:01:00]} bxc4 {[%emt 0:00:08]} 20. c3 {[%emt 0:00:34]} Rfa8 {[%emt 0:13:39]} 21. f3 {[%emt 0:04:15]} R8a5 {[%emt 0:08:52]} 22. Bf1 {[%emt 0:00:32]} Kf8 {[%emt 0:06:37]} 23. h4 {[%emt 0:12:34]} Ke8 {[%emt 0:11:53]} 24. Bb6 {[%emt 0:11:33]} Rb5 {[%emt 0:03:44]} 25. Bc7 {[%emt 0:00:33]} Rbxb2 {[%emt 0:06:26]} 26. Rd8+ {[%emt 0:01:55]} Ke7 {[%emt 0:00:07]} 27. Rb8 {[%emt 0:00:19]} Rd2 {[%emt 0:02:37]} 28. Rxd2 {[%emt 0:00:34]} Rxd2 {[%emt 0:00:06]} 29. Bxe5 {[%emt 0:01:04]} Rb2 {[%emt 0:00:54]} 30. Bd4 {[%emt 0:00:22]} Nh5 {[%emt 0:06:16]} 31. g4 {[%emt 0:02:55]} Ng3 {[%emt 0:10:59]} 32. Bf2 {[%emt 0:01:22]} Nxf1 {[%emt 0:00:23]} 33. Kxf1 {[%emt 0:00:06]} Rb5 {[%emt 0:10:56]} 34. Be3 {[%emt 0:03:37]} f6 {[%emt 0:02:07]} 35. Kf2 {[%emt 0:00:55]} Bd7 {[%emt 0:00:27]} 36. h5 {[%emt 0:01:13]} Kf7 {[%emt 0:00:07]} 37. Kg3 {[%emt 0:01:53]} Ke7 {[%emt 0:02:23]} 38. Bd4 {[%emt 0:00:21]} Kf7 {[%emt 0:00:07]} 39. Kf4 {[%emt 0:02:20]} Ke7 {[%emt 0:00:52]} 40. Ra8 {[%emt 0:01:40]} Kf7 {[%emt 0:00:23]} 41. Kg3 {[%emt 0:30:30]} Ke7 {[%emt 0:30:54]} 42. Be3 {[%emt 0:04:13]} Kf7 {[%emt 0:00:42]} 43. Kf4 {[%emt 0:00:47]} Ke7 {[%emt 0:00:07]} 44. Bc1 {[%emt 0:00:08]} Kf7 {[%emt 0:05:45]} 45. Ba3 {[%emt 0:00:29]} Re5 {[%emt 0:00:00]} 46. Rf8+ {[%emt 0:00:00]} Ke6 {[%emt 0:00:00]} 47. Bb4 {[%emt 0:00:00]} Rb5 {[%emt 0:00:00]} 48. Ke3 {[%emt 0:00:00]} Rg5 {[%emt 0:00:00]} 49. Rd8 {[%emt 0:00:00]} 1-0

[Event "Biel Master Tournament 2019"]
[Site "Biel"]
[Date "2019.07.24"]
[Round "3.14"]
[White "Vaibhav, Suri"]
[Black "Pranav Anand"]
[Result "1-0"]
[ECO "E90"]
[WhiteElo "2591"]
[BlackElo "2347"]
[Annotator "ChessBase"]
[PlyCount "101"]
[EventDate "2019.07.20"]
[EventType "swiss"]
[EventCountry "SUI"]
[SourceTitle "playchess.com"]
[Source "ChessBase"]
[SourceQuality "1"]
[TimeControl "40/5400+30:1800+30"]

1. c4 {[%emt 0:00:00]} Nf6 {[%emt 0:00:00]} 2. Nc3 {[%emt 0:00:00]} g6 {[%emt 0:00:32]} 3. e4 {[%emt 0:02:00]} d6 {[%emt 0:00:18]} 4. d4 {[%emt 0:00:07]} Bg7 {[%emt 0:00:05]} 5. Nf3 {[%emt 0:00:08]} O-O {[%emt 0:00:07]} 6. h3 {[%emt 0:00:03]} e5 {[%emt 0:00:05]} 7. d5 {[%emt 0:00:04]} Nh5 {[%emt 0:00:12]} 8. g3 {[%emt 0:00:28]} f5 {[%emt 0:00:11]} 9. exf5 {[%emt 0:00:14]} gxf5 {[%emt 0:00:07]} 10. Nh4 {[%emt 0:01:18]} Nf4 {[%emt 0:00:21]} 11. gxf4 {[%emt 0:04:08]} Qxh4 {[%emt 0:00:20]} 12. Rg1 {[%emt 0:00:03]} Re8 {[%emt 0:10:47]} 13. Qf3 {[%emt 0:25:18]} Kh8 {[%emt 0:11:09]} 14. Be2 {[%emt 0:04:43]} e4 {[%emt 0:17:01]} 15. Qe3 {[%emt 0:12:51]} Na6 {[%emt 0:03:10]} 16. b3 {[%emt 0:11:52]} Bf6 {[%emt 0:10:09]} 17. Bb2 {[%emt 0:00:37]} Bd7 {[%emt 0:00:16]} 18. O-O-O {[%emt 0:00:46]} Rg8 {[%emt 0:03:40]} 19. Kb1 {[%emt 0:10:03]} Nc5 {[%emt 0:02:19]} 20. b4 {[%emt 0:05:50]} Na4 {[%emt 0:19:44]} 21. Nxa4 {[%emt 0:03:02]} Bxa4 {[%emt 0:00:02]} 22. Rc1 {[%emt 0:00:29]} Bxb2 {[%emt 0:04:14]} 23. Kxb2 {[%emt 0:00:00]} Qf6+ {[%emt 0:00:08]} 24. Qc3 {[%emt 0:01:04]} Qxc3+ {[%emt 0:00:12]} 25. Kxc3 {[%emt 0:00:01]} Bd7 {[%emt 0:00:09]} 26. c5 {[%emt 0:08:20]} a5 {[%emt 0:02:06]} 27. Rxg8+ {[%emt 0:00:04]} Kxg8 {[%emt 0:00:36]} 28. cxd6 {[%emt 0:00:22]} cxd6 {[%emt 0:02:45]} 29. Kb2 {[%emt 0:02:49]} axb4 {[%emt 0:05:52]} 30. Rc7 {[%emt 0:00:01]} Ba4 {[%emt 0:00:42]} 31. Bh5 {[%emt 0:00:01]} Be8 {[%emt 0:01:54]} 32. Bxe8 {[%emt 0:02:02]} Rxe8 {[%emt 0:00:01]} 33. Rxb7 {[%emt 0:00:05]} e3 {[%emt 0:00:04]} 34. fxe3 {[%emt 0:00:03]} Rxe3 {[%emt 0:00:05]} 35. Rxb4 {[%emt 0:00:11]} Rxh3 {[%emt 0:00:08]} 36. a4 {[%emt 0:00:20]} Rd3 {[%emt 0:00:53]} 37. Rb5 {[%emt 0:06:57]} Rd4 {[%emt 0:00:09]} 38. Kb3 {[%emt 0:00:13]} Rxf4 {[%emt 0:00:43]} 39. a5 Rf3+ {[%emt 0:00:11]} 40. Ka4 {[%emt 0:02:29]} Rf1 {[%emt 0:07:55]} 41. Rb3 {[%emt 0:01:33]} Ra1+ {[%emt 0:01:15]} 42. Ra3 {[%emt 0:00:48]} Rc1 {[%emt 0:08:04]} 43. a6 {[%emt 0:00:11]} Kf7 {[%emt 0:02:54]} 44. a7 {[%emt 0:01:00]} Rc8 {[%emt 0:00:04]} 45. Kb5 {[%emt 0:00:09]} Ra8 {[%emt 0:00:54]} 46. Kc6 {[%emt 0:01:43]} f4 {[%emt 0:00:13]} 47. Kb7 {[%emt 0:01:32]} Re8 {[%emt 0:00:11]} 48. a8=Q {[%emt 0:00:21]} Rxa8 {[%emt 0:00:04]} 49. Rxa8 {[%emt 0:00:02]} h5 {[%emt 0:00:27]} 50. Kc6 {[%emt 0:00:31]} Kf6 {[%emt 0:00:11]} 51. Kxd6 {[%emt 0:00:27]} 1-0